Cogmind - Beta 16.1 @@@ ROGUE MODE // 2026.04.24 @ 18:43:12 Player: Pitifulpancake Result: Destroyed by H-55 Commando with Assault Rifle Performance ------------- Evolutions (0) 0 Regions Visited (3) 600 Robots Destroyed (23) 115 Value Destroyed (749) 749 Prototype IDs (4) 80 Alien Tech Used (0) 0 Bonus (0) 0 TOTAL SCORE: 1544 Bonus ------- None Cogmind --------- Core Integrity 0/250 Matter 300/300 Energy 200/200 System Corruption 0% Temperature Cool (0) Movement Walking (200) Ox1 Location -8/Recycling Parts ------- > --- POWER (1) -------- Subdweller Power Source > --- PROPULSION (2) --- Aluminum Leg Makeshift Leg > --- UTILITY (2) ------ Large Storage Unit Advanced Targeting Computer > --- WEAPON (2) ------- Subdweller Machine Gun Subdweller Machine Gun > --- INVENTORY (15) --- Light Treads Light Treads Light Treads Improved Hover Unit Improved Hover Unit Improved Hover Unit Improved Hover Unit Salvage Targeting Computer Heavy Armor Plating Hacking Suite Authchip [R/Combat] Assault Rifle Heavy Battle Rifle Makeshift Sword Peak State ------------ > --- POWER ------------ Subdweller Power Source > --- PROPULSION ------- Aluminum Leg Makeshift Leg > --- UTILITY ---------- Large Storage Unit Advanced Targeting Computer > --- WEAPON ----------- Subdweller Machine Gun Subdweller Machine Gun > --- INVENTORY -------- Light Treads Light Treads Light Treads Improved Hover Unit Improved Hover Unit Improved Hover Unit Improved Hover Unit Salvage Targeting Computer Heavy Armor Plating Hacking Suite Assault Rifle Heavy Battle Rifle Makeshift Sword [Rating: 18] Favorites ----------- Power Ion Engine Engine Ion Engine Power Core Light Nuclear Core Propulsion Light Treads Treads Light Treads Leg Aluminum Leg Utility Large Storage Unit Device Tractor Beam Storage Large Storage Unit Processor Advanced Targeting Computer Protection Core Shielding Weapon Assault Rifle Ballistic Gun Assault Rifle Ballistic Cannon Light Cannon Impact Weapon Makeshift Hammer Build | -11 -10 -10 -8 ------- Run | Yrd Mat Sub Rec Slots Evolved . | . . . . Power . | . . . . Propulsion . | . . . . Utility . | . . . . Weapon . | . . . . Parts Attached 31 | 8 12 8 3 Power 7 | 1 4 1 1 Engine 6 | 1 3 1 1 Core 1 | . 1 . . Reactor . | . . . . Propulsion 7 | 3 2 2 . Treads 4 | 2 2 . . Leg 3 | 1 . 2 . Wheel . | . . . . Hover . | . . . . Flight . | . . . . Utility 8 | 2 4 . 2 Device 3 | 1 1 . 1 Storage 3 | 1 2 . . Processor 1 | . . . 1 Hackware . | . . . . Protection 1 | . 1 . . Artifact . | . . . . Weapon 9 | 2 2 5 . Energy Gun . | . . . . Energy Cannon . | . . . . Ballistic Gun 6 | 2 . 4 . Ballistic Cannon 2 | . 2 . . Launcher . | . . . . Special Weapon . | . . . . Impact Weapon 1 | . . 1 . Slashing Weapon . | . . . . Piercing Weapon . | . . . . Special Melee Weapon . | . . . . Unidentified Prototypes . | . . . . Parts Lost 3 | . 2 1 . Power 2 | . 2 . . Propulsion . | . . . . Utility . | . . . . Weapon 1 | . . 1 . Highest Loss Streak 2 | . 2 1 . To Critical Strikes . | . . . . Average Backups 12 | 5 10 14 13 Power . | 1 1 1 . Propulsion 6 | 3 5 8 7 Utility 2 | . 1 3 3 Weapon 2 | . 1 2 3 Tool/Special . | . . . . Unused Backups 19 | . 6 1 12 Power 2 | . 2 . . Propulsion 9 | . 3 . 6 Utility 5 | . . . 5 Weapon 2 | . . 1 1 Tool/Special 1 | . 1 . . Average Slot Usage (%) 99 | . 99 99 99 Engine 13 | . 13 14 14 Treads 14 | . 28 9 . Leg 13 | . . 18 28 Device 2 | . 5 . 1 Storage 14 | . 14 14 14 Processor 1 | . . . 6 Protection 9 | . 8 14 5 Ballistic Gun 22 | . 19 22 28 Ballistic Cannon 3 | . 8 . . Impact Weapon 1 | . . 4 . Peak Build Rating 18 | 7 10 17 18 Average Rating 11 | 5 8 12 16 On Entrance 7 | . 7 9 15 Avg Prop Armor Cover (%) 11 | 11 . . . Naked Turns . | . . . . Heaviest Build 41 | 13 31 34 41 Greatest Support 40 | 40 40 40 30 Greatest Overweight (x) 2 | . . 2 1 Average Overweight (x) . | . . . 1 Largest Inventory Capacity 15 | 8 15 15 15 Average Capacity 12 | 7 10 15 15 Most Carried 15 | 7 15 15 15 Average Carried 12 | 5 10 14 14 Final Capacity 15 | 8 15 15 15 Final Carried 15 | 7 15 14 15 Class Distribution -------------------- 76% | Mutant 23% | Scavenger-Mutant Dominant Class ---------------- Mutant | -10/Materials Mutant | -10/Subcaves Scavenger-Mutant | -8/Recycling Resources | -11 -10 -10 -8 ----------- Run | Yrd Mat Sub Rec Matter Collected 948 | 302 350 251 45 Remotely 255 | 55 200 . . Salvage Created 1019 | 94 464 367 94 Parts 50 | 8 23 15 4 Haulers Intercepted . | . . . . Recyclers Shooed 5 | 2 3 . . Parts Field Recycled 8 | . . . 8 Retrieved Matter 13 | . . . 13 Parts Self-Destructed 16 | . . 16 . Prevented . | . . . . Parts Restored . | . . . . Kills | -11 -10 -10 -8 ------- Run | Yrd Mat Sub Rec Combat Hostiles Destroyed 17 | . 8 7 2 Guns 14 | . 7 5 2 Cannons 2 | . 1 1 . Classes Destroyed 6 | 2 2 2 . Worker 2 | 2 . . . Recycler 2 | 1 1 . . Watcher 2 | . 2 . . Grunt 9 | . 8 1 . Sentry 3 | . . 1 2 Subdweller 5 | . . 5 . Best Kill Streak 3 | 2 3 2 1 Combat Bots Only 2 | . 2 2 1 Max Kills in Single Turn 2 | 1 2 1 1 Gunslinging . | . . . . Exploded . | . . . . Melee . | . . . . Uniques/NPCs Destroyed . | . . . . Combat | -11 -10 -10 -8 -------- Run | Yrd Mat Sub Rec Hostile Shots Fired 135 | . 63 54 18 Missed 41 | . 22 16 3 Hits 94 | . 41 38 15 Projectile 94 | . 41 38 15 Critical Strikes 3 | . 1 2 . Actively Blocked 1 | . . 1 . Damage Taken 1521 | . 530 761 230 Core 260 | . 77 120 63 Absorbed by Shields . | . . . . Redirected to Shielding 25 | . . 25 . Core Remaining (%) 100 | 100 . . . Volleys Fired 80 | 5 43 25 7 Largest 2 | 2 2 2 2 Hottest 60 | 40 50 60 60 Shots Fired 154 | 10 81 49 14 Gun 132 | 10 70 38 14 Cannon 22 | . 11 11 . Launcher . | . . . . Special . | . . . . Kinetic 154 | 10 81 49 14 Thermal . | . . . . Explosive . | . . . . Electromagnetic . | . . . . Robot Hit Streak 14 | 3 8 13 14 Robot Miss Streak 2 | 1 1 2 . Penetration Max . | . . . . Secondary Targets . | . . . . Shots Hit Robots 117 | 5 51 51 10 Core Hits 42 | 4 22 13 3 Critical Kills . | . . . . Critical Parts Destroyed 1 | . . 1 . Critical Strikes 2 | . . 2 . Smash 2 | . . 2 . Melee Attacks 29 | . . 29 . Impact 29 | . . 29 . Slashing . | . . . . Piercing . | . . . . Sneak Attacks . | . . . . Combat Hostiles . | . . . . Follow-up Attacks . | . . . . Damage Inflicted 2545 | 54 729 1561 201 Guns 1293 | 54 589 449 201 Cannons 263 | . 110 153 . Explosions . | . . . . Melee 959 | . . 959 . Ramming 30 | . 30 . . Kinetic 1556 | 54 699 602 201 Thermal . | . . . . Explosive . | . . . . Electromagnetic . | . . . . Impact 959 | . . 959 . Slashing . | . . . . Piercing . | . . . . Highest Corruption . | . . . . Average Corruption . | . . . . Corruption Purged . | . . . . Corruption Blocked . | . . . . Overload Shots . | . . . . Overflow Damage 125 | . . 125 . Projectiles . | . . . . Explosions . | . . . . Melee 125 | . . 125 . Knockbacks 10 | . . 10 . Impact 6 | . . 6 . Kinetic 4 | . . 4 . Secondary . | . . . . Self-Inflicted Damage . | . . . . Shots . | . . . . Rammed 5 | . 5 . . Targets Rammed 6 | . 6 . . Kicked . | . . . . Crushed 1 | . 1 . . Highest Temperature 21 | . 21 3 18 Average Temperature 7 | . 6 3 11 Received Heat Transfer 597 | . 315 246 36 Siege Activations . | . . . . Martial Activations . | . . . . Shielding Activations . | . . . . Robots Disrupted . | . . . . Combat Hostiles . | . . . . Robots Corrupted 3 | . . 3 . Combat Hostiles 3 | . . 3 . Parts Fried 3 | . . 3 . Impact Corruptions 6 | . . 6 . Robots Melted . | . . . . Combat Hostiles . | . . . . Parts Melted 1 | . . 1 . Heat Transferred . | . . . . Parts Sabotaged . | . . . . Parts Stolen . | . . . . Parts Stripped . | . . . . Power Chain Reactions . | . . . . Alert | -11 -10 -10 -8 ------- Run | Yrd Mat Sub Rec Maximum Alert Level . | . . . . Low Security (%) 100 | 100 100 . 100 Level 1 . | . . . . Level 2 . | . . . . Level 3 . | . . . . Level 4 . | . . . . Level 5 . | . . . . High Security . | . . . . Max Security . | . . . . Peak Influence 86 | 10 86 . 27 Initial 3 | . 3 . . Average 11 | . 19 . 2 Influence Increases 429 | 15 292 50 72 Destroy 0b10 Robot/C 240 | . 160 40 40 Destroy 0b10 Robot/NC 30 | 15 15 . . Destroy Leader 54 | . 44 10 . Successful Hack 45 | . 28 . 17 Disable Machine 15 | . . . 15 Lose Combat Pursuer 45 | . 45 . . Influence Decreases 410 | 10 276 71 53 Entered New Map 13 | . 2 11 . Time Decay 367 | 10 254 50 53 Lost Part 30 | . 20 10 . Squads Dispatched 1 | . 1 . . Investigation 1 | . 1 . . Extermination . | . . . . Reinforcement . | . . . . Assault . | . . . . Garrison . | . . . . Intercept . | . . . . Searches Triggered . | . . . . Construction Impeded . | . . . . Haulers Reinforced . | . . . . Active Scanning Responses . | . . . . Cargo Convoy Interrupts . | . . . . Stealth | -11 -10 -10 -8 --------- Run | Yrd Mat Sub Rec Distress Signals 1 | . 1 . . Communications Jammed . | . . . . Distress Signals . | . . . . Times Spotted 32 | . 20 8 4 Peak Tracking Total 5 | . 5 3 2 Tactical Retreats 2 | . 2 . . Traps | -11 -10 -10 -8 ------- Run | Yrd Mat Sub Rec Traps Triggered . | . . . . Indirectly . | . . . . Trap Hack Attempts . | . . . . Triggered . | . . . . Disarmed 3 | . 3 . . Reprogrammed . | . . . . Reused . | . . . . Traps Extracted . | . . . . Installed . | . . . . Triggered . | . . . . Machines | -11 -10 -10 -8 ---------- Run | Yrd Mat Sub Rec Machines Disabled 1 | . . . 1 Max in Single Turn 1 | . . . 1 Machines Repaired . | . . . . Machines Dismantled . | . . . . Machines Sabotaged . | . . . . Overloaded Fab Kills . | . . . . Hacking | -11 -10 -10 -8 --------- Run | Yrd Mat Sub Rec Machines Accessed 16 | . 9 1 6 Terminals 10 | . 6 . 4 Fabricators . | . . . . Repair Stations 1 | . 1 . . Recycling Units 4 | . 2 . 2 Scanalyzers . | . . . . Garrison Access . | . . . . Total Hacks 59 | . 35 4 20 Successful 41 | . 25 4 12 Failed 18 | . 10 . 8 Catastrophic 2 | . 2 . . Database Lockouts . | . . . . Manual 16 | . 10 . 6 Terminals 45 | . 27 . 18 Fabricators . | . . . . Repair Stations 1 | . 1 . . Recycling Units 9 | . 7 . 2 Scanalyzers . | . . . . Garrison Access . | . . . . Terminal Hacks 25 | . 15 4 6 Record 5 | . . 4 1 Robot Analysis 2 | . 1 . 1 Prototype ID Bank 3 | . 3 . . Branch Access Points 2 | . 1 . 1 Alert Level 4 | . 3 . 1 Locate Traps 2 | . 2 . . Disarm Traps 1 | . 1 . . Maintenance Status 1 | . 1 . . Assault Status 1 | . 1 . . Zone Layout 4 | . 2 . 2 Fabricator Hacks . | . . . . Repair Station Hacks 1 | . 1 . . Scan Component 1 | . 1 . . Recycling Unit Hacks 7 | . 5 . 2 Report Inventory 3 | . 1 . 2 Retrieve Matter 2 | . 2 . . Retrieve Components 2 | . 2 . . Scanalyzer . | . . . . Garrison Access Hacks . | . . . . Unauthorized Hacks 8 | . 4 . 4 Terminals 8 | . 4 . 4 Botnet 8 | . 4 . 4 Fabricators . | . . . . Repair Stations . | . . . . Recycling Units . | . . . . Scanalyzers . | . . . . Garrison Access . | . . . . Data Cores Recovered . | . . . . Used . | . . . . Hacking Detections 12 | . 7 . 5 Full Trace Events 3 | . 2 . 1 Feedback Events . | . . . . Feedback Blocked . | . . . . Robot Schematics Acquired . | . . . . Robots Built . | . . . . Authchips . | . . . . Time . | . . . . Total Robot Build Rating . | . . . . Part Schematics Acquired . | . . . . Parts Built . | . . . . Authchips . | . . . . Time . | . . . . Total Part Build Rating . | . . . . Part Studies Acquired . | . . . . Parts Repaired . | . . . . Time . | . . . . Parts Recycled . | . . . . Recycled Matter . | . . . . Retrieved Matter 191 | . 191 . . Retrieved Components 9 | . 9 . . Parts Scanalyzed . | . . . . Part Schematics Acquired . | . . . . Parts Damaged . | . . . . Bothacking | -11 -10 -10 -8 ------------ Run | Yrd Mat Sub Rec Used RIF Installer . | . . . . Robots Hacked . | . . . . Non-combat . | . . . . Combat . | . . . . Robot Hacks Applied . | . . . . Relay Couplers Released . | . . . . Fabnet Peak Effective % . | . . . . Robots Rewired . | . . . . Allies Hacked . | . . . . Hacks Repelled . | . . . . Allies | -11 -10 -10 -8 -------- Run | Yrd Mat Sub Rec Total Allies . | . . . . Largest Group . | . . . . Highest-Rated Group . | . . . . Highest-Rated Ally . | . . . . Total Orders . | . . . . Ally Attacks . | . . . . Total Damage . | . . . . Kills . | . . . . Allies Corrupted . | . . . . Allies Melted . | . . . . Intel | -11 -10 -10 -8 ------- Run | Yrd Mat Sub Rec Active Infowar (turns) . | . . . . Robot Analysis Total 2 | . 1 . 1 Derelict Logs Recovered . | . . . . Drone Launches . | . . . . Drone Recoveries . | . . . . Exploration | -11 -10 -10 -8 ------------- Run | Yrd Mat Sub Rec Turns Passed 3370 | 252 1198 1264 656 Spaces Moved 1703 | 139 640 613 311 Core 2 | 2 . . . Treads 1010 | 136 640 234 . Legs 691 | 1 . 379 311 Wheels . | . . . . Hover . | . . . . Flight . | . . . . Fastest Speed 50 | 50 160 130 200 Average Speed 174 | 158 160 179 200 Slowest Speed 260 | 160 160 260 200 Overloaded Moves . | . . . . Propulsion Burnouts . | . . . . Robots Hopped . | . . . . Potential Cave-ins . | . . . . Cave-ins Triggered . | . . . . Exploration Rate (%) 49 | 5 83 42 69 Regions Visited 3 Branch Regions 2 Pre-discovered Areas . | . . . . Known Exits Taken . | . . . . Unknown Exits Taken 3 | 1 1 1 . Scrap Searched 2 | . . 2 . Spaces Dug 2 | . . 2 . Terrain Destroyed 2 | . . 2 . Melee 2 | . . 2 . Projectile . | . . . . AOE . | . . . . Terrain Rammed . | . . . . Walls Destroyed . | . . . . Machines Disabled . | . . . . Actions | -11 -10 -10 -8 --------- Run | Yrd Mat Sub Rec Total 1925 | 158 734 701 332 Wait 19 | . 6 10 3 Move 1700 | 138 639 612 311 Hop . | . . . . Pick Up 26 | 6 12 5 3 Fast Attach 16 | 8 5 1 2 Attach 2 | . . 2 . Detach 3 | 1 1 1 . Swap 16 | . 8 7 1 Drop 27 | . 14 8 5 Fire 80 | 5 43 25 7 Melee 29 | . . 29 . Ram . | . . . . Kick . | . . . . Crush 6 | . 6 . . Escape Stasis . | . . . . Rewire 1 | . . 1 . Trap . | . . . . Miscellaneous . | . . . . Route ------- -11/Scrapyard -10/Materials (discovered 6 exits: [*Mat x3] / *Min x2 / *Sub) -10/Subcaves (discovered 2 exits: [*Mat] / *Rec) -8/Recycling (discovered 1 exit: [Fac]) History --------- Turn | Location | Event 11 | -11/Scrapyard | Discovered new exit (range 15) 253 | -11/Scrapyard | Entered Materials 303 | -10/Materials | Build established: Mutant 371 | -10/Materials | Discovered new exit (range 8) 604 | -10/Materials | Discovered new exit (range 15) 788 | -10/Materials | Identified exit to Mines 1047 | -10/Materials | Discovered new exit (range 8) 1053 | -10/Materials | Derelicts attacked the area 1177 | -10/Materials | Discovered new exit (range 16) 1430 | -10/Materials | Discovered new exit (range 10) 1451 | -10/Materials | Entered Subcaves 1451 | -10/Subcaves | Discovered new exit (range 15) 1452 | -10/Subcaves | Approached by a straggling Scientist 1600 | -10/Subcaves | Visited Clippyterm 1605 | -10/Subcaves | Learned Factory emergency access door positions 1860 | -10/Subcaves | Shifting Twisted Machinery released Mak. Hammer 1869 | -10/Subcaves | Shifting Twisted Machinery released Mak. Leg 2154 | -10/Subcaves | A swath of the cavern ceiling suddenly collapsed 2253 | -10/Subcaves | Core integrity fell below 50% 2502 | -10/Subcaves | Shifting Twisted Machinery released Sub. Monowheel 2507 | -10/Subcaves | Shifting Twisted Machinery released Mak. Sword 2691 | -10/Subcaves | Discovered new exit (range 13) 2715 | -10/Subcaves | Entered Recycling 2879 | -8/Recycling | Build established: Scavenger-Mutant 3137 | -8/Recycling | Core integrity fell below 20% 3266 | -8/Recycling | Discovered new exit (range 10) 3371 | -8/Recycling | Destroyed by H-55 Commando with Assault Rifle Last Messages --------------- Trojan loaded successfully. Testing... Terminal linked with 3 systems. Awaiting botnet instructions. 03274_ Connecting with Recycling Unit... >>Recycling(Report) Matter reserves: 0 Inventory: Empty 03316_ Y-45 Defender springs to life. 03330_ Packing Station disabled. 03350_ Y-45 Defender destroyed. 03355_ Acquired 24 matter. 03358_ R-06 Scavenger collects Heat Sink. 03368_ P-60 Hacker springs to life. 03368_ H-55 Commando springs to life. 03368_ Penetrated by Slug. 03371_ Chain reaction triggered in Lgt. Nuclear Core. 03371_ A-02 Transporter destroyed. 03371_ Penetrated by Slug. Map ----- +----------------------------------------------------+ | #??????????# #??????????????###????###??#"" | | #??????????# #??????????????# ###### ###### | | ! #??????????# #??????????????# ## | | #??????????# #??????????????# ## | | #??????????# #??????????????# ## | | !#??????????# #??????????????# # | | +?????????? ??????????????# # | | #??????????###??????????????# + T | | #???????????????????????????# # | | #???????????????????????????# # | | #????????????? ????????????# ## | | #????????????? ##??#+####### ## | | #######??????????" + ## | | #??????????# #?##+####### ## | | ##### ############ #?# ] r#??############### | | #???# #?#g t #????????????????# | | ###?# #?#% =/#????????????????# | | #?######" #?#! =##???????????????# | | " #??????#T #?# r *%;#??????########## | | " ########" #?# p ;######## # | | " + #?# ! g ; i ] ? # # | | # #?# ; [ ### + | | # #?# ; ?? #?# """ # | | + #?# !Yh#???????# """ # | | ##### #?# !g #???????# "" """ + | | ###???# """" ### @ p #???????# "T """ # | | ?###### """"" ; k !#???????# "" """ # | | ?# ## "" % #### !% #???????# # | | ## [ ## """"" #??#% i! #???????########## | | # #??####+##????????????????# | | # #?????????????????????????#### | | # #????????????????????????????? | | # ???????????????????????????? | | #### #################???????????????????????????? | | ???###???????????????????????????????????????????? | | ?????????????????????????????????????????????????? | | ?????????????????????????????????????????????????? | | ?????????????????????????????????????????????????? | | | | | | | | | | | | | | | | | | | | | | | | | +----------------------------------------------------+ Best States ------------- Heat Dissipation 39 Energy Generation 15 Energy Capacity 250 Matter Stores 300 Matter Capacity 300 Sight Range 16 Terrain Scan Density 10 Core Shielding 20 Evasion (%) 55 Targeting Accuracy 8 Recoil Reduction 2 Authchip Count 1 Item Schematics ----------------- None Robot Schematics ------------------ None Fabricated ------------ Nothing Repaired ---------- Nothing Studied --------- None Alien Tech Used ----------------- None Achievements -------------- Overwhelming That Tickles root@ Challenges ------------ None Game ------ Seed BattlePartitionDrivehammer Manual? 0 Play Time 00:35:57 Cumulative 24.7 hours Start 2026.04.24 @ 18:08:25 End 2026.04.24 @ 18:43:12 Sessions 1 Manual Loads 0 Difficulty Rogue Special Mode None Game No. 20 Rogue 20 Adventurer 0 Explorer 0 Win Type - Total 0 Types 0/0/0/0/0/0/0/0/0/0 Lore% 13 Gallery% 21 Achievement% 15 Wizard Run 0 Options --------- Layout 1 ASCII 0 Keyboard 0 Movement Mouse Keybinds 0 Fullscreen 2 Font 32/SmallcapsGlow Map View 50x35 Zoom Use 0% Tactical HUD 1 Map Filters NONE Filters NONE Steam 1 RUN: 5e0ba871-c98e-4afc-94d8-cc2dfc1024ea